[Event "Late-Titled-Tuesday-Blitz-May-07-2024"]
[Site "Chess.com"]
[Date "2024.05.07"]
[Round "5"]
[White "xasid81"]
[Black "TheDevilAdvisoR"]
[Result "0-1"]
[WhiteElo "2605"]
[BlackElo "2498"]
[TimeControl "180+1"]
[EndTime "14:55:56 PDT"]
[Termination "TheDevilAdvisoR won by resignation"]

1. h4 {[%clk 0:02:56.9]} 1... c5 {[%clk 0:02:53.7]} 2. Nf3 {[%clk 0:02:57.1]}
2... Nc6 {[%clk 0:02:53.7]} 3. Nc3 {[%clk 0:02:58]} 3... d5 {[%clk 0:02:53.6]}
4. e4 {[%clk 0:02:58.9]} 4... d4 {[%clk 0:02:53.7]} 5. Ne2 {[%clk 0:02:58.8]}
5... Bg4 {[%clk 0:02:52.9]} 6. Ng3 {[%clk 0:02:59]} 6... e5 {[%clk 0:02:52.2]}
7. Bc4 {[%clk 0:02:59.3]} 7... Nf6 {[%clk 0:02:49.8]} 8. d3 {[%clk 0:02:59.2]}
8... h6 {[%clk 0:02:46.8]} 9. c3 {[%clk 0:02:59.2]} 9... Bd6 {[%clk 0:02:44.2]}
10. Qb3 {[%clk 0:02:58.2]} 10... O-O {[%clk 0:02:33.2]} 11. Qxb7 {[%clk
0:02:56]} 11... Na5 {[%clk 0:02:33.2]} 12. Qa6 {[%clk 0:02:56.1]} 12... Bc8
{[%clk 0:02:24.4]} 13. Qb5 {[%clk 0:02:46.7]} 13... Bd7 {[%clk 0:01:59.6]} 14.
Qa6 {[%clk 0:02:46.2]} 14... Bc8 {[%clk 0:01:59.4]} 15. Qb5 {[%clk 0:02:43.4]}
15... a6 {[%clk 0:01:53.4]} 16. Qa4 {[%clk 0:02:39.4]} 16... Bd7 {[%clk
0:01:49.3]} 17. Qc2 {[%clk 0:02:36.1]} 17... Nxc4 {[%clk 0:01:49.4]} 18. dxc4
{[%clk 0:02:37]} 18... Re8 {[%clk 0:01:38.3]} 19. O-O {[%clk 0:02:36]} 19... Bg4
{[%clk 0:01:35.1]} 20. Nh2 {[%clk 0:02:35.5]} 20... Be6 {[%clk 0:01:26.8]} 21.
b3 {[%clk 0:02:35.2]} 21... Nd7 {[%clk 0:01:12.8]} 22. Qe2 {[%clk 0:02:28.4]}
22... Qxh4 {[%clk 0:01:10.2]} 23. Qh5 {[%clk 0:02:28.3]} 23... Qxh5 {[%clk
0:01:04.1]} 24. Nxh5 {[%clk 0:02:29.2]} 24... g6 {[%clk 0:00:59.8]} 25. Ng3
{[%clk 0:02:28.3]} 25... Kg7 {[%clk 0:00:59.9]} 26. Bb2 {[%clk 0:02:26.7]} 26...
a5 {[%clk 0:00:59.7]} 27. f4 {[%clk 0:02:25.2]} 27... exf4 {[%clk 0:00:52.6]}
28. Ne2 {[%clk 0:02:25.3]} 28... dxc3 {[%clk 0:00:47.8]} 29. Bxc3+ {[%clk
0:02:23.5]} 29... Be5 {[%clk 0:00:46.3]} 30. Bxe5+ {[%clk 0:02:23.6]} 30... Nxe5
{[%clk 0:00:46.9]} 31. Nxf4 {[%clk 0:02:24.5]} 31... a4 {[%clk 0:00:43.9]} 32.
Nf3 {[%clk 0:02:21.6]} 32... Bg4 {[%clk 0:00:18.1]} 33. Nd5 {[%clk 0:02:12.9]}
33... axb3 {[%clk 0:00:16.4]} 34. axb3 {[%clk 0:02:12.7]} 34... Rxa1 {[%clk
0:00:17.3]} 35. Rxa1 {[%clk 0:02:10.5]} 35... Bxf3 {[%clk 0:00:17.5]} 36. gxf3
{[%clk 0:02:10.2]} 36... Nxf3+ {[%clk 0:00:18.4]} 37. Kf2 {[%clk 0:02:10.7]}
37... Nd2 {[%clk 0:00:19.3]} 38. Ra3 {[%clk 0:02:05.4]} 38... Nxe4+ {[%clk
0:00:18.7]} 39. Ke3 {[%clk 0:02:02.5]} 39... h5 {[%clk 0:00:19.6]} 40. Ra5
{[%clk 0:01:58]} 40... h4 {[%clk 0:00:19.1]} 41. Kf4 {[%clk 0:01:57.5]} 41... f5
{[%clk 0:00:16.5]} 42. Ra7+ {[%clk 0:01:55.6]} 42... Kh6 {[%clk 0:00:16.8]} 43.
Ne3 {[%clk 0:01:47.7]} 43... Rf8 {[%clk 0:00:12.6]} 44. Ra6 {[%clk 0:01:42.8]}
44... h3 {[%clk 0:00:11]} 45. Ra1 {[%clk 0:01:42]} 45... g5+ {[%clk 0:00:10.8]}
46. Ke5 {[%clk 0:01:40.7]} 46... g4 {[%clk 0:00:09.7]} 47. Kf4 {[%clk
0:01:33.3]} 47... Nd6 {[%clk 0:00:08.4]} 48. Ra6 {[%clk 0:01:30.5]} 48... Rf6
{[%clk 0:00:06.3]} 49. Ke5 {[%clk 0:01:20.6]} 49... Kg5 {[%clk 0:00:03.5]} 50.
Kd5 {[%clk 0:01:11.4]} 50... Ne4 {[%clk 0:00:03]} 51. Ra8 {[%clk 0:01:10.3]}
51... h2 {[%clk 0:00:02.9]} 52. Rh8 {[%clk 0:01:08.3]} 52... Rh6 {[%clk
0:00:03]} 53. Rxh6 {[%clk 0:01:03.9]} 53... Kxh6 {[%clk 0:00:03.9]} 54. Nxf5+
{[%clk 0:01:04.6]} 54... Kg5 {[%clk 0:00:04.4]} 55. Kxe4 {[%clk 0:01:03.9]}
55... h1=Q+ {[%clk 0:00:01.7]} 56. Ke5 {[%clk 0:01:04.8]} 56... Qe1+ {[%clk
0:00:01.7]} 57. Kd5 {[%clk 0:01:04.7]} 57... Kxf5 {[%clk 0:00:02.5]} 0-1

[Event "Late-Titled-Tuesday-Blitz-May-07-2024"]
[Site "Chess.com"]
[Date "2024.05.07"]
[Round "5"]
[White "DanielDardha2005"]
[Black "Goryachkina"]
[Result "1-0"]
[WhiteElo "2892"]
[BlackElo "2701"]
[TimeControl "180+1"]
[EndTime "14:56:00 PDT"]
[Termination "DanielDardha2005 won on time"]

1. d4 {[%clk 0:02:56.1]} 1... Nf6 {[%clk 0:02:59.5]} 2. Bg5 {[%clk 0:02:54.9]}
2... d5 {[%clk 0:02:56.5]} 3. e3 {[%clk 0:02:54.1]} 3... Ne4 {[%clk 0:02:49.1]}
4. Bf4 {[%clk 0:02:47.8]} 4... Bf5 {[%clk 0:02:45.1]} 5. f3 {[%clk 0:02:45.6]}
5... Nd6 {[%clk 0:02:36.9]} 6. Nc3 {[%clk 0:02:44.1]} 6... e6 {[%clk 0:02:36]}
7. Bd3 {[%clk 0:02:41]} 7... Bg6 {[%clk 0:02:34.5]} 8. h4 {[%clk 0:02:33.4]}
8... Nd7 {[%clk 0:02:29.4]} 9. h5 {[%clk 0:02:31.4]} 9... Bxd3 {[%clk
0:02:28.4]} 10. Qxd3 {[%clk 0:02:32.3]} 10... c6 {[%clk 0:02:21.4]} 11. O-O-O
{[%clk 0:02:28.9]} 11... Nc4 {[%clk 0:02:08.4]} 12. Rf1 {[%clk 0:01:53.2]} 12...
Qa5 {[%clk 0:01:52.1]} 13. Nge2 {[%clk 0:01:27.3]} 13... b5 {[%clk 0:01:46.5]}
14. Kb1 {[%clk 0:01:17.8]} 14... Ndb6 {[%clk 0:01:36.1]} 15. e4 {[%clk
0:01:06.1]} 15... b4 {[%clk 0:00:50.8]} 16. Nd1 {[%clk 0:01:03.9]} 16... Qb5
{[%clk 0:00:44.6]} 17. Bc1 {[%clk 0:00:59.5]} 17... a5 {[%clk 0:00:41.7]} 18.
exd5 {[%clk 0:00:44.4]} 18... cxd5 {[%clk 0:00:39.5]} 19. f4 {[%clk 0:00:42]}
19... a4 {[%clk 0:00:32.8]} 20. f5 {[%clk 0:00:41.5]} 20... Bd6 {[%clk
0:00:21.5]} 21. fxe6 {[%clk 0:00:40.4]} 21... fxe6 {[%clk 0:00:22.1]} 22. Qh3
{[%clk 0:00:28.7]} 22... Qd7 {[%clk 0:00:19.1]} 23. h6 {[%clk 0:00:17.9]} 23...
g6 {[%clk 0:00:12]} 24. Rf6 {[%clk 0:00:17.9]} 24... O-O-O {[%clk 0:00:08.6]}
25. b3 {[%clk 0:00:05.7]} 25... axb3 {[%clk 0:00:05.9]} 26. axb3 {[%clk
0:00:04.9]} 26... Na5 {[%clk 0:00:04.1]} 27. Rxe6 {[%clk 0:00:03.6]} 27... Rhe8
{[%clk 0:00:03.5]} 28. Rxd6 {[%clk 0:00:02.7]} 28... Qxh3 {[%clk 0:00:02.3]} 29.
Rxd8+ {[%clk 0:00:03.6]} 29... Kxd8 {[%clk 0:00:02.9]} 30. Rxh3 {[%clk
0:00:04.4]} 30... Rxe2 {[%clk 0:00:03.3]} 31. Rg3 {[%clk 0:00:03.4]} 31... Nc6
{[%clk 0:00:03.5]} 32. Ne3 {[%clk 0:00:02.9]} 32... Nxd4 {[%clk 0:00:02.8]} 33.
Rxg6 {[%clk 0:00:03]} 33... Nxc2 {[%clk 0:00:01.7]} 34. Rg8+ {[%clk 0:00:03]}
34... Kd7 {[%clk 0:00:01.8]} 35. Nxc2 {[%clk 0:00:03.9]} 35... Nc8 {[%clk
0:00:01.6]} 36. Rg7+ {[%clk 0:00:04.8]} 1-0

[Event "Late-Titled-Tuesday-Blitz-May-07-2024"]
[Site "Chess.com"]
[Date "2024.05.07"]
[Round "5"]
[White "realburq"]
[Black "IsaqueGoncalvesSanto"]
[Result "1-0"]
[WhiteElo "2345"]
[BlackElo "1822"]
[TimeControl "180+1"]
[EndTime "14:56:00 PDT"]
[Termination "realburq won on time"]

1. e4 {[%clk 0:03:00.9]} 1... e6 {[%clk 0:02:53.7]} 2. d4 {[%clk 0:02:55.4]}
2... d5 {[%clk 0:02:53.7]} 3. Nd2 {[%clk 0:02:56.1]} 3... Nc6 {[%clk 0:02:52.8]}
4. Ngf3 {[%clk 0:02:55.1]} 4... Nf6 {[%clk 0:02:52.2]} 5. e5 {[%clk 0:02:53.5]}
5... Nd7 {[%clk 0:02:51.8]} 6. c3 {[%clk 0:02:51.6]} 6... f6 {[%clk 0:02:51.1]}
7. exf6 {[%clk 0:02:51.2]} 7... Qxf6 {[%clk 0:02:50.2]} 8. Bd3 {[%clk
0:02:46.8]} 8... Bd6 {[%clk 0:02:49.6]} 9. Qc2 {[%clk 0:02:36.1]} 9... e5 {[%clk
0:02:06]} 10. dxe5 {[%clk 0:02:34.7]} 10... Ndxe5 {[%clk 0:02:05.2]} 11. O-O
{[%clk 0:02:30.1]} 11... Nxd3 {[%clk 0:02:01.8]} 12. Qxd3 {[%clk 0:02:31]} 12...
Be6 {[%clk 0:01:56.4]} 13. Nb3 {[%clk 0:02:24.1]} 13... O-O {[%clk 0:01:54.5]}
14. Bg5 {[%clk 0:02:16.6]} 14... Qf7 {[%clk 0:01:51.6]} 15. Rfe1 {[%clk
0:02:12.4]} 15... Bg4 {[%clk 0:01:49.4]} 16. Nbd4 {[%clk 0:01:47.6]} 16... Qh5
{[%clk 0:01:39]} 17. h4 {[%clk 0:01:03]} 17... h6 {[%clk 0:01:24.5]} 18. Bd2
{[%clk 0:01:01.2]} 18... Nxd4 {[%clk 0:01:09]} 19. Nxd4 {[%clk 0:00:42.9]} 19...
Qxh4 {[%clk 0:01:05.5]} 20. g3 {[%clk 0:00:42]} 20... Qh3 {[%clk 0:00:57]} 21.
Qf1 {[%clk 0:00:41.7]} 21... Qh5 {[%clk 0:00:54.6]} 22. Qg2 {[%clk 0:00:28.5]}
22... c5 {[%clk 0:00:34.1]} 23. Nb5 {[%clk 0:00:26.1]} 23... Bf3 {[%clk
0:00:16.6]} 24. Qh2 {[%clk 0:00:25.9]} 24... Qg6 {[%clk 0:00:14.7]} 25. Nxd6
{[%clk 0:00:22.2]} 25... Qxd6 {[%clk 0:00:15.1]} 26. Bf4 {[%clk 0:00:21.3]}
26... Qc6 {[%clk 0:00:13.9]} 27. Re7 {[%clk 0:00:20.3]} 27... Rf7 {[%clk
0:00:12.7]} 28. Rae1 {[%clk 0:00:18.4]} 28... Raf8 {[%clk 0:00:12.5]} 29. R7e6
{[%clk 0:00:12.3]} 29... Qb5 {[%clk 0:00:11.2]} 30. Bxh6 {[%clk 0:00:11.8]}
30... Qxb2 {[%clk 0:00:08.4]} 31. Bxg7 {[%clk 0:00:09.5]} 31... Rxg7 {[%clk
0:00:07.5]} 32. Rh6 {[%clk 0:00:08.1]} 32... Be4 {[%clk 0:00:03.6]} 33. Rh8+
{[%clk 0:00:07.5]} 33... Kf7 {[%clk 0:00:03.7]} 34. Qh5+ {[%clk 0:00:05]} 34...
Ke7 {[%clk 0:00:03.1]} 35. Qxd5 {[%clk 0:00:02.8]} 35... Qxc3 {[%clk 0:00:00.2]}
36. Rxe4+ {[%clk 0:00:02.8]} 1-0

[Event "Late-Titled-Tuesday-Blitz-May-07-2024"]
[Site "Chess.com"]
[Date "2024.05.07"]
[Round "5"]
[White "Eloist"]
[Black "BabageldiAnnaberdiyev"]
[Result "0-1"]
[WhiteElo "2405"]
[BlackElo "2575"]
[TimeControl "180+1"]
[EndTime "14:56:02 PDT"]
[Termination "BabageldiAnnaberdiyev won on time"]

1. e4 {[%clk 0:03:00.9]} 1... e6 {[%clk 0:02:59.4]} 2. d4 {[%clk 0:03:00.4]}
2... d5 {[%clk 0:02:59.9]} 3. Nd2 {[%clk 0:03:00.5]} 3... Nf6 {[%clk 0:02:59.2]}
4. e5 {[%clk 0:03:00.4]} 4... Nfd7 {[%clk 0:02:59.2]} 5. c3 {[%clk 0:03:00.3]}
5... c5 {[%clk 0:02:59.6]} 6. Bd3 {[%clk 0:03:00.2]} 6... Nc6 {[%clk 0:03:00.1]}
7. Ngf3 {[%clk 0:02:50.2]} 7... cxd4 {[%clk 0:02:59.4]} 8. cxd4 {[%clk
0:02:49.6]} 8... Qb6 {[%clk 0:02:59.7]} 9. Nb3 {[%clk 0:02:49.4]} 9... a5 {[%clk
0:02:59.3]} 10. a4 {[%clk 0:02:45.6]} 10... Bb4+ {[%clk 0:02:58.2]} 11. Kf1
{[%clk 0:02:20.6]} 11... h6 {[%clk 0:02:57.7]} 12. Be3 {[%clk 0:02:13.1]} 12...
Be7 {[%clk 0:02:52]} 13. g3 {[%clk 0:02:08.9]} 13... O-O {[%clk 0:02:43.3]} 14.
Kg2 {[%clk 0:02:07.7]} 14... f5 {[%clk 0:02:40.5]} 15. h4 {[%clk 0:02:00.5]}
15... Ndb8 {[%clk 0:02:27.6]} 16. Rc1 {[%clk 0:01:57.7]} 16... Na6 {[%clk
0:02:26.2]} 17. h5 {[%clk 0:01:47.2]} 17... Bd7 {[%clk 0:02:23.7]} 18. Nh4
{[%clk 0:01:31.2]} 18... Bxh4 {[%clk 0:02:22.3]} 19. Rxh4 {[%clk 0:01:29.8]}
19... Nab4 {[%clk 0:02:22.4]} 20. Bb5 {[%clk 0:01:27]} 20... Rad8 {[%clk
0:02:14]} 21. Nc5 {[%clk 0:01:26.8]} 21... Bc8 {[%clk 0:02:12.7]} 22. Qd2 {[%clk
0:01:22.8]} 22... Rf7 {[%clk 0:02:07.2]} 23. g4 {[%clk 0:01:16.2]} 23... Rdf8
{[%clk 0:01:38.2]} 24. g5 {[%clk 0:01:15.1]} 24... hxg5 {[%clk 0:01:30.6]} 25.
Bxg5 {[%clk 0:01:14]} 25... Na7 {[%clk 0:01:20.3]} 26. h6 {[%clk 0:01:07.5]}
26... Nxb5 {[%clk 0:01:19.2]} 27. axb5 {[%clk 0:01:01.1]} 27... Qxb5 {[%clk
0:01:18.8]} 28. Rch1 {[%clk 0:00:54.7]} 28... b6 {[%clk 0:01:15.3]} 29. hxg7
{[%clk 0:00:39.8]} 29... Rxg7 {[%clk 0:01:16.2]} 30. Rh8+ {[%clk 0:00:37.2]}
30... Kf7 {[%clk 0:01:16.6]} 31. Rxf8+ {[%clk 0:00:31.4]} 31... Kxf8 {[%clk
0:01:17.5]} 32. Rh8+ {[%clk 0:00:30.2]} 32... Kf7 {[%clk 0:01:16.3]} 33. Rxc8
{[%clk 0:00:23.6]} 33... bxc5 {[%clk 0:01:13.7]} 34. Rc7+ {[%clk 0:00:21.5]}
34... Kg8 {[%clk 0:01:13.3]} 35. Rxg7+ {[%clk 0:00:20.8]} 35... Kxg7 {[%clk
0:01:14.2]} 36. Bf6+ {[%clk 0:00:20.9]} 36... Kf7 {[%clk 0:00:49.3]} 37. Qg5
{[%clk 0:00:20.7]} 37... Ke8 {[%clk 0:00:49.1]} 38. Qg8+ {[%clk 0:00:17.1]}
38... Kd7 {[%clk 0:00:49]} 39. Qf7+ {[%clk 0:00:15.2]} 39... Kc8 {[%clk
0:00:49.1]} 40. Qxe6+ {[%clk 0:00:14.6]} 40... Qd7 {[%clk 0:00:49.5]} 41. Qg8+
{[%clk 0:00:08.8]} 41... Kb7 {[%clk 0:00:47.3]} 42. e6 {[%clk 0:00:08.7]} 42...
Qc8 {[%clk 0:00:44.4]} 43. Qf7+ {[%clk 0:00:06.8]} 43... Kc6 {[%clk 0:00:44.1]}
44. e7 {[%clk 0:00:06.4]} 44... cxd4 {[%clk 0:00:38.2]} 45. e8=Q+ {[%clk
0:00:06.1]} 45... Qxe8 {[%clk 0:00:38.7]} 46. Qxe8+ {[%clk 0:00:06.9]} 46... Kc5
{[%clk 0:00:39.6]} 47. Qc8+ {[%clk 0:00:02.7]} 47... Kb5 {[%clk 0:00:39.2]} 48.
Qb7+ {[%clk 0:00:01.4]} 48... Ka4 {[%clk 0:00:40.1]} 0-1

[Event "Late-Titled-Tuesday-Blitz-May-07-2024"]
[Site "Chess.com"]
[Date "2024.05.07"]
[Round "5"]
[White "AlexeiShirov"]
[Black "MITerryble"]
[Result "1-0"]
[WhiteElo "2894"]
[BlackElo "3020"]
[TimeControl "180+1"]
[EndTime "14:56:03 PDT"]
[Termination "AlexeiShirov won by resignation"]

1. e4 {[%clk 0:03:00.9]} 1... e6 {[%clk 0:03:00.3]} 2. d4 {[%clk 0:03:00.9]}
2... d5 {[%clk 0:03:01]} 3. e5 {[%clk 0:03:01.3]} 3... c5 {[%clk 0:03:01.5]} 4.
c3 {[%clk 0:03:01.8]} 4... Qb6 {[%clk 0:03:02]} 5. Nf3 {[%clk 0:03:02.3]} 5...
Bd7 {[%clk 0:03:02.6]} 6. Be2 {[%clk 0:03:02.5]} 6... cxd4 {[%clk 0:03:02.6]} 7.
cxd4 {[%clk 0:03:02.7]} 7... Bb5 {[%clk 0:03:03.2]} 8. Nc3 {[%clk 0:03:02.9]}
8... Bxe2 {[%clk 0:03:03.5]} 9. Nxe2 {[%clk 0:03:02.8]} 9... Bb4+ {[%clk
0:03:03.8]} 10. Bd2 {[%clk 0:03:02.9]} 10... Nc6 {[%clk 0:03:03.4]} 11. O-O
{[%clk 0:03:01.1]} 11... Bxd2 {[%clk 0:03:02.9]} 12. Qxd2 {[%clk 0:03:00.7]}
12... Nge7 {[%clk 0:03:03.5]} 13. Rac1 {[%clk 0:02:59.9]} 13... O-O {[%clk
0:03:03]} 14. h4 {[%clk 0:02:59.5]} 14... Rac8 {[%clk 0:02:58.9]} 15. h5 {[%clk
0:02:57.5]} 15... h6 {[%clk 0:02:56.1]} 16. g4 {[%clk 0:02:55.6]} 16... f6
{[%clk 0:02:48.9]} 17. exf6 {[%clk 0:02:46.8]} 17... Rxf6 {[%clk 0:02:48.7]} 18.
Rc3 {[%clk 0:02:41.7]} 18... Rcf8 {[%clk 0:02:46.5]} 19. Kg2 {[%clk 0:02:40.6]}
19... e5 {[%clk 0:02:16.5]} 20. Rb3 {[%clk 0:02:18.2]} 20... Qc7 {[%clk
0:02:10.8]} 21. dxe5 {[%clk 0:02:16.7]} 21... Nxe5 {[%clk 0:02:09.3]} 22. Nxe5
{[%clk 0:02:16.1]} 22... Qxe5 {[%clk 0:02:09.7]} 23. Qe3 {[%clk 0:02:13.8]}
23... Qc7 {[%clk 0:01:53.2]} 24. Nd4 {[%clk 0:02:03.3]} 24... Qd7 {[%clk
0:01:47.9]} 25. f3 {[%clk 0:02:00.2]} 25... Nc6 {[%clk 0:01:47.2]} 26. Re1
{[%clk 0:01:50.3]} 26... R6f7 {[%clk 0:00:56.7]} 27. Nf5 {[%clk 0:01:37.1]}
27... Kh8 {[%clk 0:00:55.5]} 28. Qe6 {[%clk 0:01:34]} 28... Qd8 {[%clk
0:00:48.3]} 29. Rd3 {[%clk 0:01:24.6]} 29... d4 {[%clk 0:00:41.9]} 30. Qe4
{[%clk 0:01:04.2]} 30... Qa5 {[%clk 0:00:18.2]} 31. Re2 {[%clk 0:00:58]} 31...
Rxf5 {[%clk 0:00:15.3]} 32. gxf5 {[%clk 0:00:56.6]} 32... Qxf5 {[%clk
0:00:15.9]} 33. Qxf5 {[%clk 0:00:49.3]} 33... Rxf5 {[%clk 0:00:16.8]} 34. Rb3
{[%clk 0:00:33]} 34... Rg5+ {[%clk 0:00:16.9]} 35. Kf2 {[%clk 0:00:31.3]} 35...
b6 {[%clk 0:00:17.4]} 36. Re6 {[%clk 0:00:28.5]} 36... Rc5 {[%clk 0:00:13.8]}
37. f4 {[%clk 0:00:25.6]} 37... Kg8 {[%clk 0:00:13.3]} 38. Rg3 {[%clk
0:00:22.5]} 38... Kf7 {[%clk 0:00:09.3]} 39. Reg6 {[%clk 0:00:20.9]} 39... Ne7
{[%clk 0:00:09.8]} 40. Rxg7+ {[%clk 0:00:20.3]} 40... Kf6 {[%clk 0:00:08.2]} 41.
Rh7 {[%clk 0:00:18.5]} 41... Nd5 {[%clk 0:00:05.9]} 42. Rg6+ {[%clk 0:00:17.9]}
42... Kf5 {[%clk 0:00:06.3]} 43. Kf3 {[%clk 0:00:16.3]} 43... Rc7 {[%clk
0:00:01.6]} 44. Rxc7 {[%clk 0:00:15.4]} 44... Nxc7 {[%clk 0:00:02.5]} 45. Rxh6
{[%clk 0:00:15.3]} 45... Nd5 {[%clk 0:00:03.4]} 46. Rd6 {[%clk 0:00:15.1]} 1-0

[Event "Late-Titled-Tuesday-Blitz-May-07-2024"]
[Site "Chess.com"]
[Date "2024.05.07"]
[Round "5"]
[White "MikeSailer"]
[Black "AniJak"]
[Result "0-1"]
[WhiteElo "2128"]
[BlackElo "2376"]
[TimeControl "180+1"]
[EndTime "14:56:03 PDT"]
[Termination "AniJak won on time"]

1. d4 {[%clk 0:03:00.1]} 1... f5 {[%clk 0:02:58.1]} 2. g3 {[%clk 0:02:50.9]}
2... Nf6 {[%clk 0:02:52.6]} 3. Bg2 {[%clk 0:02:51.3]} 3... g6 {[%clk 0:02:52.1]}
4. b3 {[%clk 0:02:51.8]} 4... Bg7 {[%clk 0:02:46.1]} 5. Bb2 {[%clk 0:02:52.3]}
5... O-O {[%clk 0:02:46.2]} 6. c4 {[%clk 0:02:42.7]} 6... d6 {[%clk 0:02:38.9]}
7. Nh3 {[%clk 0:02:40.1]} 7... Nc6 {[%clk 0:02:38.5]} 8. d5 {[%clk 0:02:39.1]}
8... Ne5 {[%clk 0:02:37.9]} 9. Nf4 {[%clk 0:02:38.8]} 9... g5 {[%clk 0:02:27.5]}
10. Nd3 {[%clk 0:02:29.7]} 10... Nxd3+ {[%clk 0:02:22.9]} 11. Qxd3 {[%clk
0:02:28.9]} 11... Qe8 {[%clk 0:02:06.8]} 12. Nc3 {[%clk 0:02:20.8]} 12... Ne4
{[%clk 0:01:58.7]} 13. Rb1 {[%clk 0:02:07]} 13... Nxc3 {[%clk 0:01:48.3]} 14.
Bxc3 {[%clk 0:02:06.9]} 14... e5 {[%clk 0:01:40]} 15. dxe6 {[%clk 0:02:04.5]}
15... Bxe6 {[%clk 0:01:39.8]} 16. Bxg7 {[%clk 0:02:04.1]} 16... Kxg7 {[%clk
0:01:39.4]} 17. O-O {[%clk 0:01:57.4]} 17... Rb8 {[%clk 0:01:27]} 18. Qd4+
{[%clk 0:01:52.9]} 18... Kg8 {[%clk 0:01:25.6]} 19. Qxa7 {[%clk 0:01:52.8]}
19... f4 {[%clk 0:01:24.1]} 20. Qd4 {[%clk 0:01:48.7]} 20... Bf5 {[%clk
0:01:20]} 21. Rbc1 {[%clk 0:01:45.5]} 21... Qe5 {[%clk 0:01:00.8]} 22. Qxe5
{[%clk 0:01:33.7]} 22... dxe5 {[%clk 0:01:01.7]} 23. Rfd1 {[%clk 0:01:23.5]}
23... c6 {[%clk 0:01:01.2]} 24. Rd6 {[%clk 0:01:21.9]} 24... Kf7 {[%clk
0:01:00.4]} 25. Rcd1 {[%clk 0:01:21.7]} 25... Ra8 {[%clk 0:00:58.2]} 26. a4
{[%clk 0:01:21.3]} 26... Rfe8 {[%clk 0:00:55.3]} 27. Rh6 {[%clk 0:00:50.5]}
27... Kg7 {[%clk 0:00:54.6]} 28. Rhd6 {[%clk 0:00:49]} 28... Ra6 {[%clk
0:00:53.5]} 29. gxf4 {[%clk 0:00:47.1]} 29... exf4 {[%clk 0:00:53.1]} 30. Kf1
{[%clk 0:00:47.2]} 30... Rb6 {[%clk 0:00:52.4]} 31. a5 {[%clk 0:00:36.1]} 31...
Rxb3 {[%clk 0:00:51.9]} 32. a6 {[%clk 0:00:36.5]} 32... bxa6 {[%clk 0:00:42.3]}
33. Rxc6 {[%clk 0:00:36.6]} 33... Rb2 {[%clk 0:00:41.5]} 34. Bf3 {[%clk
0:00:35.7]} 34... g4 {[%clk 0:00:40.7]} 35. Rc7+ {[%clk 0:00:33.5]} 35... Kf6
{[%clk 0:00:36]} 36. Rd6+ {[%clk 0:00:29.6]} 36... Kg5 {[%clk 0:00:34.2]} 37.
Rg7+ {[%clk 0:00:23.6]} 37... Bg6 {[%clk 0:00:34.1]} 38. Bd5 {[%clk 0:00:09.6]}
38... Rexe2 {[%clk 0:00:32.2]} 39. Re6 {[%clk 0:00:05.1]} 39... Rxf2+ {[%clk
0:00:31.4]} 40. Kg1 {[%clk 0:00:05.2]} 40... f3 {[%clk 0:00:31.4]} 41. c5 {[%clk
0:00:01.4]} 41... Rg2+ {[%clk 0:00:31.2]} 42. Kf1 {[%clk 0:00:01.1]} 42... Rb1+
{[%clk 0:00:31.3]} 43. Re1 {[%clk 0:00:01.3]} 43... Rxe1+ {[%clk 0:00:28]} 44.
Kxe1 {[%clk 0:00:01.6]} 44... Re2+ {[%clk 0:00:28.2]} 45. Kf1 {[%clk 0:00:02]}
45... Kh6 {[%clk 0:00:27.7]} 46. Rd7 {[%clk 0:00:01.4]} 46... Rxh2 {[%clk
0:00:27]} 47. c6 {[%clk 0:00:01.4]} 47... Bd3+ {[%clk 0:00:25.8]} 0-1

[Event "Late-Titled-Tuesday-Blitz-May-07-2024"]
[Site "Chess.com"]
[Date "2024.05.07"]
[Round "5"]
[White "MyDream003"]
[Black "Cipy77"]
[Result "1-0"]
[WhiteElo "2835"]
[BlackElo "2640"]
[TimeControl "180+1"]
[EndTime "14:56:05 PDT"]
[Termination "MyDream003 won by resignation"]

1. e4 {[%clk 0:02:59.8]} 1... c5 {[%clk 0:02:59.7]} 2. Nf3 {[%clk 0:02:58.6]}
2... d6 {[%clk 0:02:59.8]} 3. d4 {[%clk 0:02:58.4]} 3... cxd4 {[%clk 0:03:00.7]}
4. Nxd4 {[%clk 0:02:58.4]} 4... Nf6 {[%clk 0:03:01.6]} 5. Nc3 {[%clk 0:02:58.7]}
5... g6 {[%clk 0:03:02.3]} 6. Be3 {[%clk 0:02:58.1]} 6... Bg7 {[%clk 0:03:03]}
7. f3 {[%clk 0:02:57.1]} 7... a6 {[%clk 0:03:03.7]} 8. Bc4 {[%clk 0:02:56.3]}
8... h5 {[%clk 0:03:04.4]} 9. Qd2 {[%clk 0:02:56.2]} 9... b5 {[%clk 0:03:04.2]}
10. Bb3 {[%clk 0:02:56.1]} 10... Bb7 {[%clk 0:03:03.2]} 11. O-O-O {[%clk
0:02:51.3]} 11... Nbd7 {[%clk 0:03:02.3]} 12. Rhe1 {[%clk 0:02:49.8]} 12... Rc8
{[%clk 0:03:01.6]} 13. Kb1 {[%clk 0:02:49.6]} 13... Nb6 {[%clk 0:02:56.4]} 14.
a3 {[%clk 0:02:23.5]} 14... Nfd7 {[%clk 0:02:52.1]} 15. Nd5 {[%clk 0:02:20.2]}
15... Bxd5 {[%clk 0:02:50.3]} 16. exd5 {[%clk 0:02:21.1]} 16... Ne5 {[%clk
0:02:50]} 17. Bg5 {[%clk 0:02:20.9]} 17... O-O {[%clk 0:02:45.2]} 18. f4 {[%clk
0:01:55.4]} 18... Nec4 {[%clk 0:02:45]} 19. Bxc4 {[%clk 0:01:55.7]} 19... Nxc4
{[%clk 0:02:40.5]} 20. Qd3 {[%clk 0:01:55.3]} 20... Qb6 {[%clk 0:02:16]} 21. c3
{[%clk 0:01:53.8]} 21... Rfe8 {[%clk 0:02:11.7]} 22. f5 {[%clk 0:01:50.6]} 22...
Ne5 {[%clk 0:02:09.4]} 23. Qh3 {[%clk 0:01:44.4]} 23... b4 {[%clk 0:02:04.9]}
24. axb4 {[%clk 0:01:41.6]} 24... a5 {[%clk 0:02:04.3]} 25. b5 {[%clk
0:01:41.9]} 25... a4 {[%clk 0:02:03.7]} 26. fxg6 {[%clk 0:01:41.1]} 26... fxg6
{[%clk 0:02:02.7]} 27. Qe6+ {[%clk 0:01:34.3]} 27... Kh7 {[%clk 0:02:01.1]} 28.
Rxe5 {[%clk 0:01:32.4]} 28... Bxe5 {[%clk 0:01:55.7]} 29. Qf7+ {[%clk
0:01:32.5]} 29... Bg7 {[%clk 0:01:56.3]} 30. Ne6 {[%clk 0:01:32]} 30... Rg8
{[%clk 0:01:56.4]} 31. Nf4 {[%clk 0:01:22.2]} 31... Rgf8 {[%clk 0:01:26.9]} 32.
Qxg6+ {[%clk 0:01:21]} 32... Kg8 {[%clk 0:01:19.5]} 33. Ne6 {[%clk 0:01:20.3]}
33... Rf7 {[%clk 0:01:17.2]} 34. Bh6 {[%clk 0:01:20.3]} 34... Qf2 {[%clk
0:00:41.7]} 35. Bxg7 {[%clk 0:01:16.2]} 35... Qf5+ {[%clk 0:00:40.2]} 36. Qxf5
{[%clk 0:01:16.4]} 36... Rxf5 {[%clk 0:00:41]} 37. Bh6 {[%clk 0:01:10.3]} 37...
a3 {[%clk 0:00:27.1]} 38. Rd2 {[%clk 0:01:08.9]} 38... Rf1+ {[%clk 0:00:23.9]}
39. Ka2 {[%clk 0:01:09.3]} 39... Ra8 {[%clk 0:00:20.8]} 40. bxa3 {[%clk
0:01:06.2]} 40... Rc1 {[%clk 0:00:21.3]} 41. Kb2 {[%clk 0:01:02.2]} 41... Re1
{[%clk 0:00:21.3]} 42. Bf4 {[%clk 0:00:54.5]} 42... Re4 {[%clk 0:00:20.9]} 43.
Kb3 {[%clk 0:00:53.5]} 43... Rea4 {[%clk 0:00:19.6]} 44. Ra2 {[%clk 0:00:52.9]}
44... R8a5 {[%clk 0:00:16]} 45. c4 {[%clk 0:00:53.1]} 45... Ra8 {[%clk
0:00:15.7]} 46. Be3 {[%clk 0:00:50]} 46... R4a5 {[%clk 0:00:12.9]} 47. a4 {[%clk
0:00:49.5]} 47... Rc8 {[%clk 0:00:10.7]} 48. Bb6 {[%clk 0:00:49.1]} 48... Raa8
{[%clk 0:00:10.9]} 49. a5 {[%clk 0:00:50]} 49... Kf7 {[%clk 0:00:11]} 50. a6
{[%clk 0:00:50.1]} 50... Kg6 {[%clk 0:00:11.3]} 51. a7 {[%clk 0:00:50.1]} 51...
Kf5 {[%clk 0:00:09.5]} 52. Nc7 {[%clk 0:00:50.7]} 52... Ke4 {[%clk 0:00:09.3]}
53. Nxa8 {[%clk 0:00:50.7]} 53... Rxa8 {[%clk 0:00:10.2]} 54. Bc7 {[%clk
0:00:51]} 54... Kd3 {[%clk 0:00:10.3]} 55. b6 {[%clk 0:00:51.6]} 1-0